[Event "Early-Titled-Tuesday-Blitz-May-14-2024"]
[Site "Chess.com"]
[Date "2024.05.14"]
[Round "1"]
[White "Rodalquilar"]
[Black "SONOFHOLYGOD"]
[Result "1-0"]
[WhiteElo "2871"]
[BlackElo "2506"]
[TimeControl "180+1"]
[EndTime "8:09:01 PDT"]
[Termination "Rodalquilar won by checkmate"]

1. d4 {[%clk 0:03:00.9]} 1... Nf6 {[%clk 0:02:58.2]} 2. Nf3 {[%clk 0:03:00.7]}
2... e6 {[%clk 0:02:56.9]} 3. Bf4 {[%clk 0:03:00.8]} 3... c5 {[%clk 0:02:56.7]}
4. e3 {[%clk 0:03:01]} 4... b6 {[%clk 0:02:56.2]} 5. Nbd2 {[%clk 0:03:00.1]}
5... Be7 {[%clk 0:02:55.5]} 6. h3 {[%clk 0:02:59.4]} 6... O-O {[%clk 0:02:55.5]}
7. c3 {[%clk 0:02:59.9]} 7... Bb7 {[%clk 0:02:55.6]} 8. Bd3 {[%clk 0:02:59.8]}
8... d6 {[%clk 0:02:55.7]} 9. O-O {[%clk 0:03:00.1]} 9... Nc6 {[%clk 0:02:53.7]}
10. a3 {[%clk 0:02:57.9]} 10... e5 {[%clk 0:02:49.9]} 11. Bh2 {[%clk 0:02:54.9]}
11... Re8 {[%clk 0:02:45.2]} 12. b4 {[%clk 0:02:51.1]} 12... Bf8 {[%clk
0:02:40.3]} 13. dxe5 {[%clk 0:02:39.5]} 13... dxe5 {[%clk 0:02:38.5]} 14. Ne4
{[%clk 0:02:40]} 14... cxb4 {[%clk 0:02:34.5]} 15. cxb4 {[%clk 0:02:25.5]} 15...
Nxb4 {[%clk 0:02:15.5]} 16. Nxf6+ {[%clk 0:02:19.5]} 16... Qxf6 {[%clk
0:02:16.4]} 17. axb4 {[%clk 0:02:19.7]} 17... e4 {[%clk 0:02:16.4]} 18. Bb5
{[%clk 0:02:16.4]} 18... exf3 {[%clk 0:02:16.1]} 19. Bxe8 {[%clk 0:02:16.5]}
19... Rxe8 {[%clk 0:02:08]} 20. Rxa7 {[%clk 0:02:12.5]} 20... fxg2 {[%clk
0:02:07.2]} 21. Re1 {[%clk 0:02:12.6]} 21... Rd8 {[%clk 0:02:03.8]} 22. Qa1
{[%clk 0:02:07.9]} 22... Qf3 {[%clk 0:01:58.3]} 23. Qc1 {[%clk 0:01:26.8]} 23...
h6 {[%clk 0:01:27.9]} 24. Qc3 {[%clk 0:00:43.1]} 24... Rd1 {[%clk 0:00:38.1]}
25. Ra1 {[%clk 0:00:37.4]} 25... Rd7 {[%clk 0:00:27.5]} 26. Rac1 {[%clk
0:00:21.7]} 26... Bd6 {[%clk 0:00:25.5]} 27. Bxd6 {[%clk 0:00:17.8]} 27... Rxd6
{[%clk 0:00:26.4]} 28. e4 {[%clk 0:00:18.2]} 28... Rd3 {[%clk 0:00:21.9]} 29.
Qe5 {[%clk 0:00:09.1]} 29... Qxh3 {[%clk 0:00:18.2]} 30. Qh2 {[%clk 0:00:09.2]}
30... Qg4 {[%clk 0:00:15.6]} 31. Qxg2 {[%clk 0:00:05.8]} 31... Qh4 {[%clk
0:00:12.5]} 32. f3 {[%clk 0:00:03.9]} 32... Qd8 {[%clk 0:00:10.5]} 33. Qe2
{[%clk 0:00:02.6]} 33... Rd2 {[%clk 0:00:08.6]} 34. Qe3 {[%clk 0:00:02.6]} 34...
Rd3 {[%clk 0:00:08]} 35. Qf2 {[%clk 0:00:02.2]} 35... Qg5+ {[%clk 0:00:06.8]}
36. Qg2 {[%clk 0:00:02.3]} 36... Qf4 {[%clk 0:00:05.9]} 37. Rcd1 {[%clk
0:00:02.3]} 37... Rxf3 {[%clk 0:00:05.3]} 38. Rf1 {[%clk 0:00:02.9]} 38... Bxe4
{[%clk 0:00:05.3]} 39. Rxf3 {[%clk 0:00:03.3]} 39... Bxf3 {[%clk 0:00:06.2]} 40.
Rf1 {[%clk 0:00:03.2]} 40... Qd4+ {[%clk 0:00:05.8]} 41. Qf2 {[%clk 0:00:03.8]}
41... Qg4+ {[%clk 0:00:05.9]} 42. Kh2 {[%clk 0:00:04.4]} 42... Qh5+ {[%clk
0:00:05.7]} 43. Kg3 {[%clk 0:00:05]} 43... Bd5 {[%clk 0:00:06.2]} 44. Qf5 {[%clk
0:00:04.3]} 44... Qe2 {[%clk 0:00:05.1]} 45. Rf2 {[%clk 0:00:04.2]} 45... Qe3+
{[%clk 0:00:05.2]} 46. Kh2 {[%clk 0:00:04]} 46... Be6 {[%clk 0:00:05.5]} 47. Qf4
{[%clk 0:00:04.2]} 47... Qc3 {[%clk 0:00:05.1]} 48. Rd2 {[%clk 0:00:04.4]} 48...
Qc8 {[%clk 0:00:04.8]} 49. Qd4 {[%clk 0:00:03.7]} 49... Kh7 {[%clk 0:00:05]} 50.
Qe4+ {[%clk 0:00:03.7]} 50... Bf5 {[%clk 0:00:05.7]} 51. Qd4 {[%clk 0:00:03.9]}
51... Bg6 {[%clk 0:00:06]} 52. Qxb6 {[%clk 0:00:03.8]} 52... Qc1 {[%clk
0:00:05.7]} 53. Qd4 {[%clk 0:00:03.9]} 53... Qf1 {[%clk 0:00:05.8]} 54. Kg3
{[%clk 0:00:04.2]} 54... Qe1+ {[%clk 0:00:05.5]} 55. Kg2 {[%clk 0:00:04.3]}
55... Qe7 {[%clk 0:00:06.1]} 56. Rb2 {[%clk 0:00:03.4]} 56... Be4+ {[%clk
0:00:06.6]} 57. Kf2 {[%clk 0:00:03.4]} 57... f5 {[%clk 0:00:07.5]} 58. b5 {[%clk
0:00:03.5]} 58... Qh4+ {[%clk 0:00:08]} 59. Ke3 {[%clk 0:00:03.6]} 59... Qg3+
{[%clk 0:00:08.3]} 60. Kd2 {[%clk 0:00:04.2]} 60... Qg2+ {[%clk 0:00:08.6]} 61.
Kc3 {[%clk 0:00:04.7]} 61... Qf1 {[%clk 0:00:08.6]} 62. b6 {[%clk 0:00:04.6]}
62... Qc1+ {[%clk 0:00:09]} 63. Kb4 {[%clk 0:00:05.2]} 63... Qc6 {[%clk
0:00:07.9]} 64. Ka5 {[%clk 0:00:05.4]} 64... Qa8+ {[%clk 0:00:07.9]} 65. Kb5
{[%clk 0:00:05]} 65... Bc6+ {[%clk 0:00:08.8]} 66. Kc5 {[%clk 0:00:05.2]} 66...
Bb7 {[%clk 0:00:08.5]} 67. Qe5 {[%clk 0:00:03.8]} 67... Qa3+ {[%clk 0:00:08.9]}
68. Rb4 {[%clk 0:00:02.2]} 68... Qc1+ {[%clk 0:00:08.5]} 69. Kd6 {[%clk
0:00:02.2]} 69... Qc6+ {[%clk 0:00:08.9]} 70. Ke7 {[%clk 0:00:02.2]} 70... Bc8
{[%clk 0:00:07.1]} 71. b7 {[%clk 0:00:02.2]} 71... Qd7+ {[%clk 0:00:07.5]} 72.
Kf8 {[%clk 0:00:02.3]} 72... Qd8+ {[%clk 0:00:07.3]} 73. Kf7 {[%clk 0:00:02.4]}
73... Bd7 {[%clk 0:00:07]} 74. b8=Q {[%clk 0:00:02.5]} 74... Be8+ {[%clk
0:00:07.4]} 75. Qxe8 {[%clk 0:00:02.2]} 75... Qd5+ {[%clk 0:00:08.1]} 76. Qe6
{[%clk 0:00:02.5]} 76... Qd3 {[%clk 0:00:07.9]} 77. Qbc8 {[%clk 0:00:02.2]}
77... h5 {[%clk 0:00:06.6]} 78. Qg8# {[%clk 0:00:02.5]} 1-0

[Event "Early-Titled-Tuesday-Blitz-May-14-2024"]
[Site "Chess.com"]
[Date "2024.05.14"]
[Round "1"]
[White "wadsy27"]
[Black "simaopdias"]
[Result "1/2-1/2"]
[WhiteElo "2601"]
[BlackElo "2282"]
[TimeControl "180+1"]
[EndTime "8:09:01 PDT"]
[Termination "Game drawn by repetition"]

1. Nf3 {[%clk 0:02:56.9]} 1... d5 {[%clk 0:02:59.8]} 2. g3 {[%clk 0:02:57.2]}
2... Nf6 {[%clk 0:03:00]} 3. Bg2 {[%clk 0:02:56.6]} 3... e6 {[%clk 0:03:00.9]}
4. O-O {[%clk 0:02:56.9]} 4... Be7 {[%clk 0:03:01.8]} 5. d3 {[%clk 0:02:57.1]}
5... O-O {[%clk 0:03:02.7]} 6. Nbd2 {[%clk 0:02:57.6]} 6... b6 {[%clk
0:02:59.8]} 7. e4 {[%clk 0:02:57.4]} 7... Bb7 {[%clk 0:02:59.5]} 8. e5 {[%clk
0:02:57.3]} 8... Nfd7 {[%clk 0:02:59.6]} 9. Re1 {[%clk 0:02:57.8]} 9... Re8
{[%clk 0:02:58.8]} 10. Nf1 {[%clk 0:02:58.2]} 10... Nf8 {[%clk 0:02:59]} 11. h4
{[%clk 0:02:58.8]} 11... h6 {[%clk 0:02:57.5]} 12. N1h2 {[%clk 0:02:57.7]} 12...
Nbd7 {[%clk 0:02:57.4]} 13. h5 {[%clk 0:02:54.7]} 13... c5 {[%clk 0:02:51.8]}
14. Ng4 {[%clk 0:02:46.7]} 14... Kh8 {[%clk 0:02:48.7]} 15. Bf4 {[%clk
0:02:36.2]} 15... Nh7 {[%clk 0:02:45.1]} 16. Qd2 {[%clk 0:02:34.5]} 16... Ng5
{[%clk 0:02:43.3]} 17. Nxg5 {[%clk 0:02:26.8]} 17... Bxg5 {[%clk 0:02:44.2]} 18.
Bxg5 {[%clk 0:02:27]} 18... Qxg5 {[%clk 0:02:44.7]} 19. Qxg5 {[%clk 0:02:27.1]}
19... hxg5 {[%clk 0:02:45.2]} 20. h6 {[%clk 0:02:22]} 20... gxh6 {[%clk
0:02:29.2]} 21. Nxh6 {[%clk 0:02:21.9]} 21... Kg7 {[%clk 0:02:29.6]} 22. Ng4
{[%clk 0:02:22.6]} 22... f5 {[%clk 0:02:24.4]} 23. exf6+ {[%clk 0:02:21.5]}
23... Nxf6 {[%clk 0:02:24.2]} 24. Ne5 {[%clk 0:02:17.4]} 24... Rad8 {[%clk
0:02:22.4]} 25. Re2 {[%clk 0:02:16.1]} 25... Nd7 {[%clk 0:02:20.7]} 26. Rae1
{[%clk 0:02:15.8]} 26... Nxe5 {[%clk 0:02:18.7]} 27. Rxe5 {[%clk 0:02:16.7]}
27... Kf6 {[%clk 0:02:18.5]} 28. c3 {[%clk 0:02:15.5]} 28... Rd7 {[%clk
0:01:51.4]} 29. d4 {[%clk 0:02:04]} 29... cxd4 {[%clk 0:01:48.4]} 30. cxd4
{[%clk 0:02:04.9]} 30... Rc7 {[%clk 0:01:46.8]} 31. Bh3 {[%clk 0:01:42.7]} 31...
Rc6 {[%clk 0:01:26]} 32. f4 {[%clk 0:01:37.8]} 32... gxf4 {[%clk 0:01:23.6]} 33.
Rf1 {[%clk 0:01:38]} 33... Rg8 {[%clk 0:01:03.4]} 34. Rxf4+ {[%clk 0:01:36.6]}
34... Ke7 {[%clk 0:01:03.9]} 35. g4 {[%clk 0:01:21.8]} 35... Rc2 {[%clk
0:00:58.6]} 36. g5 {[%clk 0:01:18.5]} 36... Bc8 {[%clk 0:00:52.9]} 37. Rf2
{[%clk 0:01:14.8]} 37... Rc1+ {[%clk 0:00:48.9]} 38. Kg2 {[%clk 0:01:11.9]}
38... Rd1 {[%clk 0:00:49.2]} 39. Rfe2 {[%clk 0:00:55]} 39... Rxd4 {[%clk
0:00:42.7]} 40. Bxe6 {[%clk 0:00:54.7]} 40... Bxe6 {[%clk 0:00:43.1]} 41. Rxe6+
{[%clk 0:00:54.4]} 41... Kd7 {[%clk 0:00:43.4]} 42. Re7+ {[%clk 0:00:45.2]}
42... Kc6 {[%clk 0:00:43.4]} 43. R2e6+ {[%clk 0:00:23.5]} 43... Kb5 {[%clk
0:00:43.5]} 44. g6 {[%clk 0:00:22.8]} 44... Rg4+ {[%clk 0:00:42.9]} 45. Kf3
{[%clk 0:00:23.4]} 45... R4xg6 {[%clk 0:00:42.4]} 46. Rxg6 {[%clk 0:00:23.8]}
46... Rxg6 {[%clk 0:00:42.6]} 47. Rxa7 {[%clk 0:00:24.5]} 47... Re6 {[%clk
0:00:42.6]} 48. Rc7 {[%clk 0:00:23.3]} 48... Re4 {[%clk 0:00:38.6]} 49. Rc3
{[%clk 0:00:21.1]} 49... Rc4 {[%clk 0:00:37.7]} 50. Rb3+ {[%clk 0:00:20.5]}
50... Kc5 {[%clk 0:00:38.2]} 51. Ke3 {[%clk 0:00:20.3]} 51... Rh4 {[%clk
0:00:37.5]} 52. Rc3+ {[%clk 0:00:20.1]} 52... Kb5 {[%clk 0:00:37.1]} 53. Rc8
{[%clk 0:00:19]} 53... Rh2 {[%clk 0:00:35.1]} 54. Kd4 {[%clk 0:00:17.8]} 54...
Rxb2 {[%clk 0:00:33.8]} 55. Kxd5 {[%clk 0:00:18.4]} 55... Rd2+ {[%clk
0:00:33.2]} 56. Ke4 {[%clk 0:00:18.5]} 56... Rxa2 {[%clk 0:00:33.6]} 57. Kd3
{[%clk 0:00:18.9]} 57... Rh2 {[%clk 0:00:31.7]} 58. Kc3 {[%clk 0:00:18.5]} 58...
Rh3+ {[%clk 0:00:30.6]} 59. Kb2 {[%clk 0:00:18.8]} 59... Kb4 {[%clk 0:00:30.7]}
60. Rg8 {[%clk 0:00:17.8]} 60... Rh2+ {[%clk 0:00:30]} 61. Kb1 {[%clk
0:00:17.9]} 61... Rh3 {[%clk 0:00:30]} 62. Rg4+ {[%clk 0:00:18.1]} 62... Kb5
{[%clk 0:00:29.8]} 63. Kb2 {[%clk 0:00:17.8]} 63... Rf3 {[%clk 0:00:29.2]} 64.
Re4 {[%clk 0:00:16.5]} 64... Kc5 {[%clk 0:00:28.6]} 65. Rg4 {[%clk 0:00:16.5]}
65... b5 {[%clk 0:00:28.3]} 66. Rh4 {[%clk 0:00:16.7]} 66... Rd3 {[%clk
0:00:28.2]} 67. Rg4 {[%clk 0:00:16.8]} 67... Kb6 {[%clk 0:00:25.5]} 68. Rh4
{[%clk 0:00:16.2]} 68... Rd2+ {[%clk 0:00:25.9]} 69. Kb3 {[%clk 0:00:16.1]}
69... Rf2 {[%clk 0:00:26.8]} 70. Rg4 {[%clk 0:00:16]} 70... Rf1 {[%clk
0:00:26.5]} 71. Rh4 {[%clk 0:00:16.3]} 71... Ka5 {[%clk 0:00:26.9]} 72. Rg4
{[%clk 0:00:16.5]} 72... Rf3+ {[%clk 0:00:27.4]} 73. Kb2 {[%clk 0:00:16.7]}
73... Rh3 {[%clk 0:00:27.5]} 74. Rf4 {[%clk 0:00:16.7]} 74... Rg3 {[%clk
0:00:27.6]} 75. Rh4 {[%clk 0:00:16.9]} 75... Rg2+ {[%clk 0:00:27.8]} 76. Kb3
{[%clk 0:00:16.6]} 76... Rg3+ {[%clk 0:00:28.7]} 77. Kb2 {[%clk 0:00:17]} 77...
b4 {[%clk 0:00:28.9]} 78. Rh8 {[%clk 0:00:16.9]} 78... Rg2+ {[%clk 0:00:26.4]}
79. Kb3 {[%clk 0:00:16.6]} 79... Rg3+ {[%clk 0:00:27.3]} 80. Kb2 {[%clk
0:00:16.9]} 80... Kb5 {[%clk 0:00:27.4]} 81. Rb8+ {[%clk 0:00:16.5]} 81... Kc5
{[%clk 0:00:27.9]} 82. Rc8+ {[%clk 0:00:17.1]} 82... Kd5 {[%clk 0:00:28.2]} 83.
Rb8 {[%clk 0:00:17]} 83... Kc4 {[%clk 0:00:28.5]} 84. Rc8+ {[%clk 0:00:17.4]}
84... Kd4 {[%clk 0:00:28.4]} 85. Rb8 {[%clk 0:00:17.8]} 85... Kc4 {[%clk
0:00:28.2]} 86. Rc8+ {[%clk 0:00:18]} 86... Kd4 {[%clk 0:00:28.4]} 87. Rb8
{[%clk 0:00:18.3]} 87... Kc5 {[%clk 0:00:28.7]} 88. Rc8+ {[%clk 0:00:18.3]}
88... Kb5 {[%clk 0:00:29.1]} 89. Rb8+ {[%clk 0:00:18.6]} 89... Ka5 {[%clk
0:00:29.7]} 90. Ra8+ {[%clk 0:00:18.8]} 90... Kb6 {[%clk 0:00:30.2]} 91. Rb8+
{[%clk 0:00:19.1]} 91... Kc5 {[%clk 0:00:30.7]} 1/2-1/2

[Event "Early-Titled-Tuesday-Blitz-May-14-2024"]
[Site "Chess.com"]
[Date "2024.05.14"]
[Round "1"]
[White "ilya2700"]
[Black "NelsonLinda"]
[Result "0-1"]
[WhiteElo "2248"]
[BlackElo "2599"]
[TimeControl "180+1"]
[EndTime "8:09:12 PDT"]
[Termination "NelsonLinda won by checkmate"]

1. d4 {[%clk 0:03:00]} 1... Nf6 {[%clk 0:02:48.7]} 2. c4 {[%clk 0:03:00.4]} 2...
g6 {[%clk 0:02:41.9]} 3. Nc3 {[%clk 0:03:00.5]} 3... Bg7 {[%clk 0:02:41.8]} 4.
e4 {[%clk 0:03:00.8]} 4... d6 {[%clk 0:02:42.7]} 5. f4 {[%clk 0:03:01.1]} 5...
O-O {[%clk 0:02:43.3]} 6. Nf3 {[%clk 0:03:01.5]} 6... c5 {[%clk 0:02:43.7]} 7.
d5 {[%clk 0:03:02]} 7... e6 {[%clk 0:02:44.5]} 8. Be2 {[%clk 0:03:02.5]} 8...
exd5 {[%clk 0:02:44.6]} 9. cxd5 {[%clk 0:03:03.4]} 9... b5 {[%clk 0:02:44.5]}
10. e5 {[%clk 0:03:01.9]} 10... dxe5 {[%clk 0:02:41]} 11. fxe5 {[%clk
0:03:02.8]} 11... Ng4 {[%clk 0:02:40.2]} 12. Bg5 {[%clk 0:03:03.2]} 12... Qb6
{[%clk 0:02:22.7]} 13. O-O {[%clk 0:03:03]} 13... c4+ {[%clk 0:02:16.4]} 14. Kh1
{[%clk 0:03:02.4]} 14... Nf2+ {[%clk 0:02:05.1]} 15. Rxf2 {[%clk 0:03:02.4]}
15... Qxf2 {[%clk 0:02:06]} 16. Nxb5 {[%clk 0:02:44.3]} 16... Qc5 {[%clk
0:01:34.1]} 17. Nd6 {[%clk 0:02:40.6]} 17... Nd7 {[%clk 0:00:59.3]} 18. Be7
{[%clk 0:02:09.2]} 18... Nxe5 {[%clk 0:00:57.6]} 19. Nxc8 {[%clk 0:01:52]} 19...
Qxc8 {[%clk 0:00:51.8]} 20. Bxf8 {[%clk 0:01:50.2]} 20... Kxf8 {[%clk
0:00:50.9]} 21. Qa4 {[%clk 0:01:15.2]} 21... Nd3 {[%clk 0:00:41.5]} 22. Bxd3
{[%clk 0:01:06.8]} 22... cxd3 {[%clk 0:00:42.4]} 23. Qa3+ {[%clk 0:01:05.5]}
23... Kg8 {[%clk 0:00:41.3]} 24. Qxd3 {[%clk 0:01:05.9]} 24... Bxb2 {[%clk
0:00:39.4]} 25. Rb1 {[%clk 0:00:54.6]} 25... Bf6 {[%clk 0:00:39.1]} 26. d6
{[%clk 0:00:51.9]} 26... Qc6 {[%clk 0:00:33.7]} 27. h3 {[%clk 0:00:39.4]} 27...
Rd8 {[%clk 0:00:32.4]} 28. Rd1 {[%clk 0:00:39.8]} 28... Rd7 {[%clk 0:00:30.8]}
29. Qa3 {[%clk 0:00:22.9]} 29... Kg7 {[%clk 0:00:27.8]} 30. Qb4 {[%clk
0:00:21.1]} 30... Qa6 {[%clk 0:00:23.6]} 31. a4 {[%clk 0:00:20]} 31... Qc6
{[%clk 0:00:16.1]} 32. Nd4 {[%clk 0:00:18]} 32... Qe4 {[%clk 0:00:12]} 33. Qc5
{[%clk 0:00:11.4]} 33... Be5 {[%clk 0:00:09.3]} 34. Nb5 {[%clk 0:00:10.9]} 34...
Qf4 {[%clk 0:00:08]} 35. Qg1 {[%clk 0:00:05.8]} 35... a6 {[%clk 0:00:04.5]} 36.
Rf1 {[%clk 0:00:06.4]} 36... Qxa4 {[%clk 0:00:03.5]} 37. Qc5 {[%clk 0:00:03.6]}
37... Qxb5 {[%clk 0:00:03.4]} 38. Qc8 {[%clk 0:00:03.1]} 38... Rxd6 {[%clk
0:00:03.3]} 39. Qc1 {[%clk 0:00:02.5]} 39... Qd5 {[%clk 0:00:03.3]} 40. Qe1
{[%clk 0:00:01.4]} 40... Rf6 {[%clk 0:00:03.2]} 41. Rg1 {[%clk 0:00:01.5]} 41...
Qd4 {[%clk 0:00:02.7]} 42. Qe2 {[%clk 0:00:01.8]} 42... Qf4 {[%clk 0:00:03]} 43.
g4 {[%clk 0:00:01.1]} 43... Qf3+ {[%clk 0:00:03.3]} 44. Qg2 {[%clk 0:00:02]}
44... Qxg2+ {[%clk 0:00:03.5]} 45. Rxg2 {[%clk 0:00:02.9]} 45... Rf3 {[%clk
0:00:03.9]} 46. Ra2 {[%clk 0:00:02.6]} 46... Rxh3+ {[%clk 0:00:04.2]} 47. Kg2
{[%clk 0:00:03]} 47... Rg3+ {[%clk 0:00:05.1]} 48. Kh1 {[%clk 0:00:03.9]} 48...
Rxg4 {[%clk 0:00:05.9]} 49. Rf2 {[%clk 0:00:04.5]} 49... h5 {[%clk 0:00:06]} 50.
Rxf7+ {[%clk 0:00:05]} 50... Kh6 {[%clk 0:00:04.1]} 51. Rh7+ {[%clk 0:00:05.5]}
51... Kg5 {[%clk 0:00:04.5]} 52. Rxh5+ {[%clk 0:00:06.1]} 52... Kf4 {[%clk
0:00:05]} 53. Rh3 {[%clk 0:00:03.4]} 53... Bf6 {[%clk 0:00:02.9]} 54. Ra3 {[%clk
0:00:03]} 54... Rh4+ {[%clk 0:00:03.1]} 55. Kg2 {[%clk 0:00:03.1]} 55... g5
{[%clk 0:00:02.4]} 56. Rxa6 {[%clk 0:00:03.2]} 56... Bd4 {[%clk 0:00:00.7]} 57.
Rd6 {[%clk 0:00:02.1]} 57... Kf5 {[%clk 0:00:01.6]} 58. Rd5+ {[%clk 0:00:02.1]}
58... Kg6 {[%clk 0:00:02.3]} 59. Rd7 {[%clk 0:00:01.6]} 59... Rf4 {[%clk
0:00:02.9]} 60. Rb7 {[%clk 0:00:01.1]} 60... Kh5 {[%clk 0:00:03.4]} 61. Rb5
{[%clk 0:00:01.5]} 61... Kg4 {[%clk 0:00:03.7]} 62. Rb3 {[%clk 0:00:01.8]} 62...
Be5 {[%clk 0:00:03.6]} 63. Rg3+ {[%clk 0:00:01.8]} 63... Kf5 {[%clk 0:00:04.1]}
64. Rb3 {[%clk 0:00:02.7]} 64... Re4 {[%clk 0:00:04.7]} 65. Rf3+ {[%clk
0:00:02.4]} 65... Bf4 {[%clk 0:00:04.5]} 66. Rb3 {[%clk 0:00:03.3]} 66... Re3
{[%clk 0:00:04.4]} 67. Kh1 {[%clk 0:00:03.8]} 67... Kg4 {[%clk 0:00:04.6]} 68.
Rb1 {[%clk 0:00:03.4]} 68... Kh3 {[%clk 0:00:04.4]} 69. Rf1 {[%clk 0:00:03.3]}
69... Re2 {[%clk 0:00:04.5]} 70. Rb1 {[%clk 0:00:02.8]} 70... Rh2+ {[%clk
0:00:05.1]} 71. Kg1 {[%clk 0:00:03.7]} 71... Be3+ {[%clk 0:00:06]} 72. Kf1
{[%clk 0:00:02.9]} 72... Rh1+ {[%clk 0:00:06.7]} 73. Ke2 {[%clk 0:00:03.4]}
73... Rxb1 {[%clk 0:00:07.6]} 74. Kf3 {[%clk 0:00:03.9]} 74... g4+ {[%clk
0:00:08.2]} 75. Ke2 {[%clk 0:00:03.9]} 75... g3 {[%clk 0:00:08.9]} 76. Kf3
{[%clk 0:00:04.1]} 76... g2 {[%clk 0:00:09.5]} 77. Ke4 {[%clk 0:00:04]} 77...
g1=Q {[%clk 0:00:09.8]} 78. Kf3 {[%clk 0:00:04.9]} 78... Qf2+ {[%clk 0:00:09.9]}
79. Ke4 {[%clk 0:00:04.9]} 79... Rb4+ {[%clk 0:00:10.6]} 80. Kd3 {[%clk
0:00:04.9]} 80... Qd2# {[%clk 0:00:11]} 0-1